bitfinex-derivatives/quotes_BNBF0:USTF0_20250221
["timestamp","ask_amount","ask_price","bid_price","bid_amount"]
[1740163693405,0.3082519,648.82,647.8,0.28329665]
[1740163696911,0.3082519,648.82,647.8,0.8794051]
[1740163697112,0.3082519,648.82,647.8,0.28329665]
[1740163697309,0.3082519,648.82,647.81,0.28329665]
[1740163697513,0.3082519,648.82,647.8,0.28329665]
[1740163697714,0.3082519,648.82,647.81,0.28329665]
[1740163697915,0.3082519,648.82,647.8,0.28329665]
[1740163698115,0.3082519,648.82,647.81,0.28329665]
[1740163698313,0.3082519,648.82,647.82,0.28329665]
[1740163698513,0.3082519,648.82,647.8,0.28329665]
[1740163698814,0.3082519,648.82,647.81,0.28329665]
[1740163699014,0.3082519,648.82,647.8,0.28329665]
[1740163699215,0.3082519,648.82,647.81,0.28329665]
[1740163699512,0.3082519,648.82,647.82,0.28329665]
[1740163699710,0.3082519,648.82,647.83,0.28329665]
[1740163699915,0.3082519,648.82,647.8,0.28329665]
[1740163700110,0.3082519,648.82,647.81,0.28329665]
[1740163700311,0.3082519,648.82,647.8,0.28329665]
[1740163700510,0.3082519,648.82,647.81,0.28329665]
[1740163700714,0.3082519,648.82,647.8,0.28329665]
[1740163700908,0.3082519,648.82,647.81,0.28329665]
[1740163701113,0.3082519,648.82,647.82,0.28329665]
[1740163701416,0.3082519,648.82,647.83,0.28329665]
[1740163701616,0.3082519,648.82,647.8,0.28329665]
[1740163701916,0.3082519,648.82,647.81,0.28329665]
[1740163702116,0.3082519,648.82,647.8,0.28329665]
[1740163702316,0.3082519,648.82,647.81,0.28329665]
[1740163702516,0.3082519,648.82,647.8,0.28329665]
[1740163702816,0.3082519,648.82,647.81,0.28326486]
[1740163703016,0.3082519,648.82,647.82,0.28326486]
[1740163703214,0.3082519,648.82,647.83,0.28326486]
[1740163703412,0.3082519,648.82,647.84,0.28326486]
[1740163703610,0.3082519,648.82,647.85,0.28326486]
[1740163703814,0.3082519,648.82,647.86,0.28326486]
[1740163704015,0.3082519,648.82,647.87,0.28326486]
[1740163704315,0.3082519,648.82,647.88,0.28326486]
[1740163704516,0.3082519,648.82,647.8,0.28326486]
[1740163704715,0.3082519,648.82,647.81,0.28326486]
[1740163704916,0.3082519,648.82,647.8,0.28326486]
[1740163705115,0.3082519,648.82,647.81,0.28326486]
[1740163705416,0.3082519,648.82,647.82,0.28326486]
[1740163705610,0.3082519,648.82,647.79,1.133]
[1740163705611,0.3082519,648.82,647.8,0.28326486]
[1740163705812,0.3082519,648.82,647.81,0.28326486]
[1740163706013,0.3082519,648.82,647.82,0.28326486]
[1740163706338,0.3082519,648.82,647.83,0.28326486]
[1740163706415,0.3082519,648.82,647.84,0.28326486]
[1740163706613,0.3082519,648.82,647.85,0.28326486]
[1740163706815,0.3082519,648.82,647.86,0.28326486]
[1740163707015,0.3082519,648.82,647.87,0.28326486]
[1740163707218,0.3082519,648.82,647.88,0.28326486]
[1740163707418,0.3082519,648.82,647.79,1.133]
[1740163707612,0.3082519,648.82,647.8,0.28326244]
[1740163712521,0.3082519,648.82,647.79,1.133]
[1740163712721,0.3082519,648.82,647.8,0.28328793]
[1740163714221,0.3082519,648.82,647.81,0.28328812]
[1740163714423,0.3082519,648.82,647.8,0.28328812]
[1740163714721,0.3082519,648.82,647.81,0.28328812]
[1740163714921,0.3082519,648.82,647.79,1.133]
[1740163714922,0.3082519,648.82,647.8,0.28328812]
[1740163715122,0.3082519,648.82,647.81,0.28328812]
[1740163715322,0.3082519,648.82,647.81,1.36113665]
[1740163715522,0.3082519,648.82,647.82,0.28328812]
[1740163715722,0.3082519,648.82,647.81,1.36113665]
[1740163716022,0.3082519,648.82,647.82,0.28328441]
[1740163716615,0.3082519,648.82,647.84,1.36113665]
[1740163716817,0.3082519,648.82,647.85,0.28328441]
[1740163718520,0.3082519,648.82,647.88,1.36113665]
[1740163718725,0.3082519,648.82,647.89,0.28328441]
[1740163720422,0.3082519,648.82,647.89,1.64442106]
[1740163720728,0.3082519,648.82,647.9,0.28323915]
[1740163722526,0.3082519,648.82,647.91,0.28323915]
[1740163722723,0.3082519,648.82,647.92,0.28323915]
[1740163722926,0.3082519,648.82,647.8,0.28323915]
[1740163723127,0.3082519,648.82,647.81,0.28323915]
[1740163723327,0.3082519,648.82,647.8,0.28323915]
[1740163723527,0.3082519,648.82,647.81,0.28323915]
[1740163723730,0.3082519,648.82,647.8,0.28323915]
[1740163723927,0.3082519,648.82,647.81,0.28323915]
[1740163724126,0.3082519,648.82,647.8,0.28323915]
[1740163725526,0.3082519,648.82,647.79,1.133]
[1740163725727,0.3082519,648.82,647.8,0.28326577]
[1740163732135,0.3082519,648.82,647.81,0.28325815]
[1740163732334,0.3082519,648.82,647.8,0.28325815]
[1740163732634,0.3082519,648.82,647.81,0.28326203]
[1740163732837,0.3082519,648.82,647.79,1.133]
[1740163732838,0.3082519,648.82,647.82,0.28326203]
[1740163733136,0.3082519,648.82,647.83,0.28326203]
[1740163733331,0.3082519,648.82,647.8,0.28326203]
[1740163733530,0.3082519,648.82,647.81,0.28326203]
[1740163733730,0.3082519,648.82,647.8,0.28326203]
[1740163734029,0.3082519,648.82,647.81,0.28326203]
[1740163734232,0.3082519,648.82,647.8,0.28326203]
[1740163735534,0.3082519,648.82,647.79,1.133]
[1740163735729,0.3082519,648.82,647.8,0.28324975]
[1740163737138,0.3082519,648.82,647.79,1.133]
[1740163737332,0.3082519,648.82,647.8,0.28324932]
[1740163738041,0.3082519,648.82,647.81,0.59726863]
[1740163738232,0.3082519,648.82,647.82,0.59726863]
[1740163738435,0.3082519,648.82,647.81,0.59726863]
[1740163738738,0.3082519,648.82,647.82,0.88051795]
[1740163738935,0.3082519,648.82,647.9,1.36113665]
[1740163739141,0.3082519,648.82,647.91,0.28324932]
[1740163741134,0.3082519,648.82,647.91,1.33924932]
[1740163741338,0.3082519,648.82,647.92,0.28324932]
[1740163741740,0.3082519,648.82,647.98,1.36113665]
[1740163741940,0.3082519,648.82,647.99,0.28324932]
[1740163744537,0.3082519,648.82,647.92,0.28324932]
[1740163744739,0.3082519,648.82,647.91,1.056]
[1740163744946,0.3082519,648.82,647.92,0.28319647]
[1740163746339,0.3082519,648.82,647.93,0.28319243]
[1740163746540,0.3082519,648.82,647.94,0.28319243]
[1740163746742,0.3082519,648.82,647.95,0.28319243]
[1740163747046,0.3082519,648.82,647.96,0.28319243]
[1740163747239,0.3082519,648.82,647.92,0.28319243]
[1740163748047,0.3082519,648.82,647.92,0.8797498]
[1740163748642,0.3082519,648.82,647.93,0.28319243]
[1740163748944,0.3082519,648.82,647.94,0.8797498]
[1740163749142,0.3082519,648.82,647.95,0.8797498]
[1740163749340,0.3082519,648.82,647.96,0.8797498]
[1740163749749,0.3082519,648.82,647.92,1.36113665]
[1740163749750,0.3082519,648.82,647.97,0.8797498]
[1740163749948,0.3082519,648.82,647.98,0.59655737]
[1740163750151,0.3082519,648.82,647.94,0.8797498]
[1740163750449,0.3082519,648.82,647.95,0.8797498]
[1740163750641,0.3082519,648.82,647.96,0.59655737]
[1740163750846,0.3082519,648.82,647.94,0.8797498]
[1740163751042,0.3082519,648.82,647.95,0.8797498]
[1740163751246,0.3082519,648.82,648.18,1.36113665]
[1740163751450,0.3082519,648.82,648.19,0.28319243]
[1740163753546,0.3082519,648.82,648.18,0.28319243]
[1740163755453,0.3082519,648.82,648.19,0.28319243]
[1740163755649,0.3082519,648.82,648.2,0.28319243]
[1740163755849,0.3082519,648.82,648.21,0.28317788]
[1740163756153,0.3082519,648.82,648.22,0.28317788]
[1740163756352,0.3082519,648.82,648.16,0.28317788]
[1740163758049,0.3082519,648.82,648.0,0.28317788]
[1740163758251,0.3082519,648.82,648.01,0.28317788]
[1740163758449,0.3082519,648.82,648.0,0.28317788]
[1740163758653,0.3082519,648.82,647.99,1.60967036]
[1740163758654,0.3082519,648.82,648.01,0.28317788]
[1740163758950,0.3082519,648.82,647.99,1.60967036]
[1740163759153,0.3082519,648.82,648.0,0.28320842]
[1740163763757,0.3082519,648.82,648.01,0.28319225]
[1740163764058,0.3082519,648.82,648.02,0.28319225]
[1740163764255,0.3082519,648.82,648.03,0.28319225]
[1740163764454,0.3082519,648.82,648.0,0.28319225]
[1740163764655,0.3082519,648.82,648.01,0.28319225]
[1740163764854,0.3082519,648.82,648.0,0.28319225]
[1740163765057,0.3082519,648.82,648.01,0.28319225]
[1740163765255,0.3082519,648.82,647.99,1.60967036]
[1740163765458,0.3082519,648.82,648.0,0.28319559]
[1740163767460,0.3082519,648.82,648.01,1.36113665]
[1740163767761,0.3082519,648.82,648.02,0.28321156]
[1740163768460,0.3082519,648.82,648.01,1.36113665]
[1740163768657,0.3082519,648.82,648.02,0.28321188]
[1740163770155,0.3082519,648.82,648.01,1.36113665]
[1740163770762,0.3082519,648.82,647.99,1.60967036]
[1740163770963,0.3082519,648.82,648.0,0.28326612]
[1740163771664,0.3082519,648.82,647.99,1.60967036]
[1740163771863,0.3082519,648.82,648.0,0.28326296]
[1740163775969,0.3082519,648.82,648.01,1.273]
[1740163783369,0.3082519,648.82,648.02,0.283296]
[1740163783573,0.3082519,648.82,648.01,1.273]
[1740163795281,0.3082519,648.82,648.02,0.28332176]
[1740163801487,0.3082519,648.82,648.01,1.273]
[1740163814098,0.3082519,648.82,648.02,0.28335844]
[1740163814297,0.3082519,648.82,648.01,1.273]
[1740163815696,0.3082519,648.82,648.02,0.28327439]
[1740163815901,0.3082519,648.82,648.01,1.273]
[1740163816201,0.3082519,648.82,648.02,0.28328464]
[1740163818106,0.3082519,648.82,648.03,0.28327793]
[1740163818405,0.3082519,648.82,648.04,0.28327793]
[1740163818600,0.3082519,648.82,648.02,0.28327793]
[1740163818799,0.3082519,648.82,648.03,0.28327793]
[1740163818998,0.3082519,648.82,648.02,0.28327793]
[1740163819206,0.3082519,648.82,648.03,0.28327793]
[1740163819403,0.3082519,648.82,648.02,0.28327793]
[1740163819705,0.3082519,648.82,648.01,1.273]
[1740163824812,0.3082519,648.82,647.34,1.36113665]
[1740163825110,0.3082519,648.82,647.35,0.28335831]
[1740163825512,0.3082519,648.82,647.34,1.36113665]
[1740163825704,0.3082519,648.82,647.35,0.28335923]
[1740163826107,0.3082519,648.82,647.39,1.36113665]
[1740163826310,0.3082519,648.82,647.4,0.28335923]
[1740163828308,0.3082519,648.82,647.4,0.87994859]
[1740163828911,0.3082519,648.82,647.36,2.95291223]
[1740163828912,0.3082519,648.82,647.41,0.8799861]
[1740163829212,0.3082519,648.82,647.38,1.36113665]
[1740163829213,0.3082519,648.82,647.42,0.8799861]
[1740163829407,0.3082519,648.82,647.43,0.8799861]
[1740163829608,0.3082519,648.82,647.44,0.59661813]
[1740163829808,0.3082519,648.82,647.39,0.8799861]
[1740163832214,0.3082519,648.82,647.56,1.36113665]
[1740163832414,0.3082519,648.82,647.57,0.28336797]
[1740163834416,0.3082519,648.82,647.55,0.28336797]
[1740163834618,0.3082519,648.82,647.56,0.28336797]
[1740163834919,0.3082519,648.82,647.57,0.28336797]
[1740163835218,0.3082519,648.82,647.54,1.36113665]
[1740163835418,1.23717108,648.81,647.54,1.36113665]
[1740163835719,3.21689798,648.8,647.54,1.36113665]
[1740163836013,0.3082709,648.78,647.38,1.36113665]
[1740163836214,1.23717108,648.77,647.39,0.28348145]
[1740163836413,0.30828516,648.75,647.39,0.28348145]
[1740163836617,1.23749903,648.74,647.39,0.28348145]
[1740163836814,3.21663124,648.73,647.39,0.28348145]
[1740163837019,3.48212805,648.72,647.39,0.28348145]
[1740163837220,3.48212805,648.71,647.39,0.28348145]
[1740163837421,3.21663124,648.7,647.39,0.28348145]
[1740163837719,3.21663124,648.69,647.39,0.28348145]
[1740163837919,3.21663124,648.68,647.39,0.28348145]
[1740163838122,3.21663124,648.67,647.39,0.28348145]
[1740163838420,1.2363966,648.66,647.4,0.28348145]
[1740163838621,1.2363966,648.65,647.41,0.28348145]
[1740163838921,1.2363966,648.64,647.42,0.28348145]
[1740163839121,1.2363966,648.63,647.37,0.28348145]
[1740163839420,1.2363966,648.63,647.36,2.95291223]
[1740163839421,1.2363966,648.62,647.38,0.28348145]
[1740163839616,0.97810591,648.64,647.37,0.28348145]
[1740163839819,0.97810591,648.61,647.38,0.28348145]
[1740163840119,0.97810591,648.61,647.36,1.342]
[1740163840120,0.97810591,648.61,647.39,0.28348145]
[1740163840316,0.97810591,648.61,647.4,0.28348145]
[1740163840514,0.97810591,648.61,647.37,0.28348145]
[1740163840714,0.97810591,648.6,647.38,0.28348145]
[1740163840920,0.97810591,648.6,647.36,1.342]
[1740163840921,0.97810591,648.6,647.39,0.28348145]
[1740163841120,0.97810591,648.59,647.4,0.28348145]
[1740163841317,0.97810591,648.59,647.41,0.28348145]
[1740163841513,0.97810591,648.59,647.36,1.342]
[1740163841718,0.97810591,648.58,647.37,0.28355091]
[1740163842617,1.56226009,648.74,647.37,0.28355091]
[1740163842814,1.23319886,648.73,647.37,0.28355091]
[1740163843022,1.23319886,648.72,647.37,0.28355091]
[1740163843320,1.23319886,648.71,647.37,0.28355091]
[1740163843621,1.23319886,648.7,647.37,0.28355091]
[1740163843821,0.30831843,648.68,647.37,0.28355091]
[1740163844022,2.20875974,648.67,647.37,0.28355091]
[1740163844321,0.97556088,648.67,647.37,0.28355091]
[1740163844621,1.23239669,648.66,647.37,0.28355091]
[1740163844822,1.49791681,648.65,647.37,0.28355091]
[1740163845020,1.49791681,648.64,647.37,0.28355091]
[1740163845216,0.97556088,648.66,647.37,0.28355091]
[1740163845217,0.30834695,648.62,647.37,0.28355091]
[1740163845421,1.49791681,648.61,647.37,0.28355091]
[1740163845622,0.30836121,648.59,647.37,0.28355091]
[1740163845816,1.23196207,648.58,647.37,0.28355091]
[1740163846023,0.30837547,648.56,647.36,1.342]
[1740163846220,1.23208035,648.55,647.36,1.342]
[1740163846523,0.30838974,648.53,647.36,1.342]
[1740163846724,1.23208035,648.52,647.36,1.342]
[1740163846923,0.308404,648.5,647.36,1.342]
[1740163847124,1.23123467,648.49,647.36,1.342]
[1740163847323,0.30841827,648.47,647.36,1.342]
[1740163847622,1.23056414,648.46,647.36,1.342]
[1740163847825,0.30843254,648.44,647.36,1.342]
[1740163848418,0.97556088,648.43,647.36,1.342]
[1740163848619,0.30844681,648.41,647.36,1.342]
[1740163852626,0.97183909,648.4,647.36,1.342]
[1740163852828,0.30846108,648.38,647.36,1.342]
[1740163856922,0.97061835,648.37,647.36,1.342]
[1740163857124,0.30847536,648.35,647.36,1.342]
[1740163862128,0.30847536,648.35,647.37,0.283591]
[1740163868338,0.30847536,648.35,647.36,1.342]
[1740163868542,0.30847536,648.35,647.37,0.28357713]
[1740163874843,0.30847536,648.35,647.36,1.342]
[1740163875048,0.30847536,648.35,647.37,0.28359327]
[1740163879444,0.30847536,648.35,647.36,1.342]
[1740163879948,0.30847536,648.35,647.37,0.28352663]
[1740163881351,0.30847536,648.35,647.38,0.28350514]
[1740163881558,0.30847536,648.35,647.39,0.28350514]
[1740163881758,0.30847536,648.35,647.35,0.28350514]
[1740163882057,0.30847536,648.35,647.36,0.28350514]
[1740163882256,0.30847536,648.35,647.36,1.053]
[1740163882452,0.30847536,648.35,647.37,0.28350514]
[1740163887958,0.30847536,648.35,647.36,1.053]
[1740163888159,0.30847536,648.35,647.37,0.28349425]
[1740163889562,0.30847536,648.35,647.38,0.28349662]
[1740163889762,0.30847536,648.35,647.39,0.28349662]
[1740163889959,0.30847536,648.35,647.37,0.28349662]
[1740163892563,0.30847536,648.35,647.38,0.28353267]
[1740163892863,0.30847536,648.35,647.39,0.28353267]
[1740163893063,0.30847536,648.35,647.37,0.28353267]
[1740163893262,0.30847536,648.35,647.38,0.28353267]
[1740163893464,0.30847536,648.35,647.39,0.28353267]
[1740163893664,0.30847536,648.35,647.4,0.28353267]
[1740163893964,0.30847536,648.35,647.41,0.28353267]
[1740163894162,0.30847536,648.35,647.36,1.053]
[1740163894163,0.30847536,648.35,647.37,0.28353267]
[1740163897365,0.30847536,648.35,647.38,0.28353565]
[1740163897566,0.30847536,648.35,647.37,0.28353565]
[1740163897766,0.30847536,648.35,647.38,0.28353565]
[1740163897959,0.30847536,648.35,647.37,0.28353565]
[1740163898168,0.30847536,648.35,647.38,0.28353565]
[1740163898364,0.30847536,648.35,647.37,0.28353565]
[1740163898661,0.30847536,648.35,647.38,0.28353565]
[1740163898864,0.30847536,648.35,647.36,2.66459608]
[1740163899065,0.30847536,648.35,647.37,0.28353179]
[1740163905473,0.30847536,648.35,647.38,1.12]
[1740163905771,0.30847536,648.35,647.39,0.28353179]
[1740163906771,0.30847536,648.35,647.38,1.12]
[1740163906972,0.30847536,648.35,647.39,0.28355147]
[1740163907168,0.30847536,648.35,647.38,1.12]
[1740163908171,0.30847536,648.35,647.39,0.28358578]
[1740163908368,0.30847536,648.35,647.38,1.12]
[1740163909370,0.30847536,648.35,647.39,0.28357986]
[1740163914878,0.30847536,648.35,647.38,1.12]
[1740163914879,0.30847536,648.35,647.4,0.28356594]
[1740163915080,0.30847536,648.35,647.41,0.28356594]
[1740163915278,0.30847536,648.35,647.42,0.28356594]
[1740163915480,0.30847536,648.35,647.43,0.28356594]
[1740163915680,0.30847536,648.35,647.44,0.28356594]
[1740163915881,0.30847536,648.35,647.39,0.28356594]
[1740163916093,0.30847536,648.35,647.4,0.28356594]
[1740163916283,0.30847536,648.35,647.39,0.28356594]
[1740163916485,0.30847536,648.35,647.4,0.28356594]
[1740163916683,0.30847536,648.35,647.39,0.28356594]
[1740163916883,0.30847536,648.35,647.4,0.28356594]
[1740163917084,0.30847536,648.35,647.41,0.28356594]
[1740163917285,0.30847536,648.35,647.42,0.28356594]
[1740163917584,0.30847536,648.35,647.43,0.28356594]
[1740163917779,0.30847536,648.35,647.44,0.28356594]
[1740163917983,0.30847536,648.35,647.45,0.28356594]
[1740163918182,0.30847536,648.35,647.46,0.28356594]
[1740163918379,0.30847536,648.35,647.39,0.28356594]
[1740163918582,0.30847536,648.35,647.4,0.28356594]
[1740163918778,0.30847536,648.35,647.39,0.28356594]
[1740163918978,0.30847536,648.35,647.38,1.12]
[1740163918979,0.30847536,648.35,647.4,0.28356594]
[1740163919182,0.30847536,648.35,647.39,0.28356594]
[1740163919682,0.30847536,648.35,647.4,0.28352441]
[1740163919984,0.30847536,648.35,647.38,1.12]
[1740163919985,0.30847536,648.35,647.41,0.28352441]
[1740163920180,0.30847536,648.35,647.42,0.28352441]
[1740163920385,0.30847536,648.35,647.43,0.28352441]
[1740163920585,0.30847536,648.35,647.39,0.28352441]
[1740163920786,0.30847536,648.35,647.4,0.28352441]
[1740163921089,0.30847536,648.35,647.38,1.12]
[1740163921984,0.97947405,648.34,647.38,1.12]
[1740163922684,0.30848963,648.32,647.39,0.28363559]
[1740163925683,0.30848963,648.32,647.38,0.28363559]
[1740163925889,0.30848963,648.32,647.39,0.28363559]
[1740163926087,0.30848963,648.32,647.38,0.28363559]
[1740163926387,0.30848963,648.32,647.37,1.61202534]
[1740163926388,0.30848963,648.32,647.39,0.28363559]
[1740163926588,0.30848963,648.32,647.4,0.28363559]
[1740163926889,0.30848963,648.32,647.41,0.28363559]
[1740163928890,0.30848963,648.32,647.42,0.28350953]
[1740163929089,0.30848963,648.32,647.41,0.28350953]
[1740163929390,0.30848963,648.32,647.42,0.28350953]
[1740163929590,0.30848963,648.32,647.43,0.28350953]
[1740163929893,0.30848963,648.32,647.44,0.28350953]
[1740163930184,0.30848963,648.32,647.45,0.28350953]
[1740163930389,0.30848963,648.32,647.41,0.28350953]
[1740163936689,0.30848963,648.32,647.4,1.363]
[1740163936889,0.30848963,648.32,647.41,0.28343193]
[1740163939995,0.30848963,648.32,647.42,0.28344022]
[1740163940195,0.30848963,648.32,647.41,0.28344022]
[1740163940395,0.30848963,648.32,647.42,0.28344022]
[1740163940595,0.30848963,648.32,647.41,0.28344022]
[1740163940789,0.30848963,648.32,647.42,0.28344022]
[1740163940994,0.30848963,648.32,647.41,0.28344022]
[1740163941189,0.30848963,648.32,647.42,0.28344022]
[1740163941393,0.30848963,648.32,647.43,0.28344022]
[1740163941595,0.30848963,648.32,647.44,0.28342412]
[1740163941796,0.30848963,648.32,647.41,0.28342412]
[1740163942095,0.30848963,648.32,647.42,0.28342412]
[1740163942294,0.30848963,648.32,647.41,0.88479184]
[1740163942490,0.30848963,648.32,647.42,0.88479184]
[1740163942692,0.30848963,648.32,647.43,0.60136772]
[1740163942888,0.30848963,648.32,647.44,0.88479184]
[1740163943094,0.30848963,648.32,647.45,0.60136772]
[1740163943295,0.30848963,648.32,647.42,0.60136772]
[1740163943599,0.30848963,648.32,647.43,0.88479184]
[1740163943895,0.30848963,648.32,647.44,0.88479184]
[1740163944096,0.30848963,648.32,647.45,0.60136772]
[1740163944395,0.30848963,648.32,647.46,0.88479184]
[1740163944599,0.30848963,648.32,647.47,0.60136772]
[1740163944793,0.30848963,648.32,647.48,0.8846452]
[1740163944992,0.30848963,648.32,647.49,0.60127944]
[1740163945196,0.30848963,648.32,647.5,0.8846452]
[1740163945399,0.30848963,648.32,647.51,0.8846452]
[1740163945598,0.30848963,648.32,647.41,0.8846452]
[1740163945798,0.30848963,648.32,647.42,0.8846452]
[1740163945993,0.30848963,648.32,647.43,0.8846452]
[1740163946198,0.30848963,648.32,647.4,2.97430382]
[1740163946199,0.30848963,648.32,647.44,0.60127944]
[1740163946396,0.30848963,648.32,647.45,0.88466919]
[1740163946700,0.30848963,648.32,647.46,0.88466919]
[1740163946900,0.30848963,648.32,647.47,0.60130301]
[1740163947092,0.30848963,648.32,647.41,0.28336618]
[1740163947093,0.30848963,648.32,647.48,0.88466919]
[1740163947297,0.30848963,648.32,647.49,0.88466919]
[1740163947500,0.30848963,648.32,647.41,0.88466919]
[1740163947800,0.30848963,648.32,647.42,0.88466919]
[1740163947993,0.30848963,648.32,647.43,0.88468191]
[1740163948197,0.30848963,648.32,647.44,0.60136186]
[1740163948393,0.30848963,648.32,647.45,0.28336341]
[1740163948599,0.30848963,648.32,647.42,0.28336341]
[1740163948799,0.30848963,648.32,647.43,0.88472527]
[1740163949101,0.30848963,648.32,647.44,0.88472527]
[1740163949397,0.30848963,648.32,647.45,0.88472527]
[1740163949602,0.30848963,648.32,647.46,0.88471101]
[1740163949896,0.30848963,648.32,647.4,2.97430382]
[1740163949897,0.30848963,648.32,647.47,0.88471101]
[1740163950201,0.30848963,648.32,647.48,0.88471101]
[1740163950401,0.30848963,648.32,647.49,0.28336319]
[1740163950698,0.30848963,648.32,647.5,0.88471101]
[1740163950997,0.30848963,648.32,647.51,0.88471101]
[1740163951199,0.30848963,648.32,647.52,0.88503283]
[1740163951399,0.30848963,648.32,647.53,0.28340098]
[1740163951596,0.30848963,648.32,647.41,0.28340098]
[1740163951797,0.30848963,648.32,647.4,2.97430382]
[1740163951798,0.30848963,648.32,647.47,1.36113665]
[1740163952001,0.30848963,648.32,647.48,0.28340098]
[1740163952593,0.30848963,648.32,647.48,0.88467912]
[1740163952796,0.30848963,648.32,647.49,0.88433897]
[1740163953000,0.30848963,648.32,647.5,0.88433897]
[1740163953201,0.30848963,648.32,647.51,0.60097484]
[1740163953398,1.528,648.48,647.49,0.60097484]
[1740163953602,1.528,648.48,647.48,0.28336413]
[1740163953603,1.528,648.48,647.5,0.88433897]
[1740163953898,1.528,648.48,647.51,0.88433897]
[1740163954101,1.528,648.48,647.44,0.28336413]
[1740163954305,1.528,648.48,647.43,1.6112603]
[1740163954605,1.528,648.48,647.44,0.88397235]
[1740163954804,1.528,648.48,647.45,0.88397235]
[1740163955100,1.528,648.48,647.46,0.88397235]
[1740163955304,1.528,648.48,647.47,0.88397235]
[1740163955500,1.528,648.48,647.48,0.88397235]
[1740163955701,1.528,648.48,647.49,0.88397235]
[1740163955904,1.528,648.48,647.5,0.88371166]
[1740163956098,1.528,648.48,647.51,0.28332653]
[1740163956302,1.528,648.48,647.45,0.28332653]
[1740163956603,1.528,648.48,647.46,0.88371166]
[1740163956799,1.528,648.48,647.47,0.28332653]
[1740163957006,1.528,648.48,647.48,0.88371166]
[1740163957202,1.528,648.48,647.49,0.88371166]
[1740163957405,1.528,648.48,647.43,1.6112603]
[1740163957606,1.528,648.48,647.44,0.88388462]
[1740163957802,1.528,648.48,647.45,0.88388462]
[1740163958005,1.528,648.48,647.46,0.88388462]
[1740163958209,1.528,648.48,647.47,0.88388462]
[1740163958409,1.528,648.48,647.48,0.88388462]
[1740163958608,1.528,648.48,647.49,0.88388462]
[1740163958811,1.528,648.48,647.5,0.88388462]
[1740163959015,1.528,648.48,647.51,0.88388462]
[1740163959214,1.528,648.48,647.52,0.88388462]
[1740163959415,1.528,648.48,647.53,0.88388462]
[1740163959710,1.528,648.48,647.54,0.88388462]
[1740163959914,1.528,648.48,647.55,0.60055941]
[1740163960116,1.528,648.48,647.56,0.60055941]
[1740163960316,1.528,648.48,647.57,0.88388462]
[1740163960511,1.528,648.48,647.58,0.60055941]
[1740163960715,1.528,648.48,647.45,0.88388462]
[1740163960917,1.528,648.48,647.46,0.88388462]
[1740163961117,1.528,648.48,647.47,0.88388462]
[1740163961319,1.528,648.48,647.48,0.88388462]
[1740163961618,1.528,648.48,647.49,0.88388462]
[1740163961814,1.528,648.48,647.5,0.88388462]
[1740163962018,1.528,648.48,647.51,0.88388462]
[1740163962419,1.528,648.48,647.52,0.88388462]
[1740163962615,1.528,648.48,647.53,0.88388462]
[1740163962820,1.528,648.48,647.54,0.88388462]
[1740163963020,1.53673117,649.54,647.55,0.88388462]
[1740163963220,1.53673117,649.54,647.46,1.61112354]
[1740163963221,0.30791969,649.52,647.56,0.88388462]
[1740163963420,0.26528704,649.51,647.57,0.88388462]
[1740163963623,4.55868729,649.51,647.58,0.88388462]
[1740163963822,0.30793391,649.49,647.5,1.36113665]
[1740163964123,0.26528573,649.48,647.51,0.88341615]
[1740163964421,0.30794814,649.46,647.52,0.88341615]
[1740163964621,1.5014694,649.45,647.53,0.60009519]
[1740163964821,3.47936328,649.44,647.52,0.60009519]
[1740163965022,1.5014694,649.43,647.53,1.96341615]
[1740163965224,0.30797185,649.41,647.54,0.88341615]
[1740163965417,1.5014694,649.4,647.59,1.36113665]
[1740163965622,0.30798607,649.38,647.6,0.88341615]
[1740163965817,1.5014694,649.37,647.61,0.60009519]
[1740163966017,1.5014694,649.36,647.6,0.28332096]
[1740163966324,1.5014694,649.35,647.6,0.28332096]
[1740163966522,0.26528573,649.34,647.61,0.59985932]
[1740163966717,0.26528573,649.35,647.6,0.28332096]
[1740163967022,0.2652465,649.34,647.61,0.59992266]
[1740163967321,0.30798607,649.38,647.62,0.88324362]
[1740163967519,1.50059038,649.37,647.63,0.28332096]
[1740163967721,1.50059038,649.36,647.54,0.28332096]
[1740163968022,0.30800505,649.34,647.55,0.8836874]
[1740163968222,0.30800505,649.34,647.56,0.60036644]
[1740163968423,0.26525388,649.33,647.55,0.60036644]
[1740163968624,0.30800505,649.34,647.53,1.08]
[1740163968824,0.26525542,649.33,647.54,0.88364219]
[1740163969024,0.97097451,649.32,647.54,0.88364219]
[1740163969326,1.23539766,649.31,647.54,0.88364219]
[1740163969519,0.97097451,649.32,647.54,0.88364219]
[1740163969724,0.30802402,649.3,647.54,0.88364219]
[1740163970724,0.97097451,649.29,647.54,0.88364219]
[1740163970925,0.30803825,649.27,647.54,0.28329033]
[1740163971230,1.50081,649.26,647.55,0.60032301]
[1740163971424,0.30805249,649.24,647.56,0.28329033]